Cogmind - Beta 15 @@@ ROGUE MODE // 2025.09.17 @ 22:38:55 Player: ID-34L Result: Destroyed by Y-45 Defender with Heavy Assault Rifle Performance ------------- Evolutions (1) 500 Regions Visited (2) 400 Robots Destroyed (22) 110 Value Destroyed (506) 506 Prototype IDs (4) 80 Alien Tech Used (0) 0 Bonus (0) 0 TOTAL SCORE: 1596 Bonus ------- None Cogmind --------- Core Integrity 0/400 Matter 260/300 Energy 6/100 System Corruption 1% Temperature Cool (9) Movement Rolling (100) Location -9/Materials Parts ------- > --- POWER (1) -------- (None) > --- PROPULSION (3) --- Compact Wheel > --- UTILITY (3) ------ Medium Storage Unit ECM Suite > --- WEAPON (2) ------- Improved Medium Laser > --- INVENTORY (10) --- Ion Engine Light Ion Engine Light Ion Engine Small Storage Unit Peak State ------------ > --- POWER ------------ Light Ion Engine > --- PROPULSION ------- Wheel Wheel Compact Wheel > --- UTILITY ---------- Improved Heat Sink Medium Storage Unit Medium Armor Plating > --- WEAPON ----------- Assault Rifle Light Assault Rifle > --- INVENTORY -------- Ion Engine Light Ion Engine Light Treads Light Treads Small Storage Unit ECM Suite Propulsion Shielding EM Pulse Gun Beam Rifle Grenade Launcher [Rating: 13] Favorites ----------- Power Light Ion Engine Engine Light Ion Engine Propulsion Wheel Leg Aluminum Leg Wheel Wheel Utility Improved Heat Sink Device Improved Heat Sink Storage Small Storage Unit Protection Propulsion Shielding Weapon Light Assault Rifle Energy Gun EM Pulse Gun Ballistic Gun Light Assault Rifle Launcher Grenade Launcher Build | -11 -10 -9 ------- Run | Yrd Mat Mat Slots Evolved 2 | . . 2 Power . | . . . Propulsion 1 | . . 1 Utility 1 | . . 1 Weapon . | . . . Parts Attached 25 | 6 1 18 Power 5 | 1 . 4 Engine 5 | 1 . 4 Core . | . . . Reactor . | . . . Propulsion 6 | 2 . 4 Treads . | . . . Leg 3 | . . 3 Wheel 3 | 2 . 1 Hover . | . . . Flight . | . . . Utility 7 | 1 1 5 Device 2 | . 1 1 Storage 2 | 1 . 1 Processor . | . . . Hackware . | . . . Protection 3 | . . 3 Artifact . | . . . Weapon 7 | 2 . 5 Energy Gun 3 | 1 . 2 Energy Cannon . | . . . Ballistic Gun 3 | 1 . 2 Ballistic Cannon . | . . . Launcher 1 | . . 1 Special Weapon . | . . . Impact Weapon . | . . . Slashing Weapon . | . . . Piercing Weapon . | . . . Special Melee Weapon . | . . . Unidentified Prototypes . | . . . Parts Lost 17 | . . 17 Power 3 | . . 3 Propulsion 5 | . . 5 Utility 4 | . . 4 Weapon 5 | . . 5 Highest Loss Streak 10 | . . 10 To Critical Strikes . | . . . Average Backups 6 | 2 6 7 Power 1 | . 1 2 Propulsion 1 | 1 2 1 Utility 1 | . . 2 Weapon 1 | . 1 1 Tool/Special . | . . . Unused Backups 4 | . 1 3 Power 2 | . 1 1 Propulsion 2 | . . 2 Utility . | . . . Weapon . | . . . Tool/Special . | . . . Average Slot Usage (%) 91 | . 96 86 Engine 11 | . 14 9 Leg 8 | . . 14 Wheel 20 | . 28 13 Device 10 | . 11 9 Storage 12 | . 14 11 Protection 3 | . . 6 Energy Gun 9 | . 14 5 Ballistic Gun 13 | . 14 13 Peak Build Rating 13 | 6 9 13 Average Rating 8 | 4 8 9 On Entrance 5 | . 6 9 Naked Turns . | . . . Heaviest Build 24 | 11 12 24 Greatest Support 36 | 20 20 36 Greatest Overweight (x) 5 | . . 5 Average Overweight (x) . | . . . Largest Inventory Capacity 10 | 8 8 10 Average Capacity 8 | 5 8 9 Most Carried 10 | 5 8 10 Average Carried 6 | 3 6 7 Final Capacity 10 | 8 8 10 Final Carried 8 | 4 8 4 Class Distribution -------------------- 65% | Mutant 34% | Scavenger-Mutant Dominant Class ---------------- Mutant | -10/Materials Scavenger-Mutant | -9/Materials Resources | -11 -10 -9 ----------- Run | Yrd Mat Mat Matter Collected 635 | 189 97 349 Remotely . | . . . Salvage Created 706 | . 221 485 Parts 47 | . 12 35 Haulers Intercepted 2 | . 1 1 Recyclers Shooed . | . . . Parts Field Recycled . | . . . Retrieved Matter . | . . . Parts Self-Destructed . | . . . Prevented . | . . . Kills | -11 -10 -9 ------- Run | Yrd Mat Mat Combat Hostiles Destroyed 14 | . 2 12 Guns 9 | . 2 7 AOE 5 | . . 5 Classes Destroyed 9 | . 5 4 Worker 3 | . 1 2 Builder 1 | . . 1 Tunneler 1 | . 1 . Hauler 2 | . 1 1 Watcher 1 | . 1 . Swarmer 3 | . . 3 Grunt 9 | . 2 7 Duelist 1 | . . 1 Sentry 1 | . . 1 Best Kill Streak 11 | . 2 11 Combat Bots Only 8 | . 1 8 Max Kills in Single Turn 3 | . 1 3 Gunslinging . | . . . Exploded 3 | . . 3 Melee . | . . . Uniques/NPCs Destroyed . | . . . Combat | -11 -10 -9 -------- Run | Yrd Mat Mat Hostile Shots Fired 145 | . 4 141 Missed 31 | . 1 30 Hits 114 | . 3 111 Melee 10 | . . 10 Projectile 104 | . 3 101 Critical Strikes 2 | . . 2 Damage Taken 1775 | . 40 1735 Core 427 | . 17 410 Absorbed by Shields . | . . . Redirected to Shielding 50 | . . 50 Core Remaining (%) 96 | 100 93 . Volleys Fired 67 | . 16 51 Largest 2 | . 2 2 Hottest 76 | . 60 76 Shots Fired 124 | . 32 92 Gun 118 | . 32 86 Cannon . | . . . Launcher 6 | . . 6 Special . | . . . Kinetic 73 | . 16 57 Thermal 9 | . . 9 Explosive 6 | . . 6 Electromagnetic 36 | . 16 20 Robot Hit Streak 10 | . 9 10 Robot Miss Streak 3 | . 3 3 Penetration Max . | . . . Secondary Targets 1 | . . 1 Max Gunslinging Chain 1 | . . 1 Shots Hit Robots 84 | . 20 64 Core Hits 43 | . 12 31 Critical Kills . | . . . Critical Parts Destroyed 1 | . . 1 Critical Strikes 3 | . 1 2 Burn 1 | . . 1 Destroy 1 | . . 1 Corrupt 1 | . 1 . Melee Attacks . | . . . Impact . | . . . Slashing . | . . . Piercing . | . . . Sneak Attacks . | . . . Combat Hostiles . | . . . Follow-up Attacks . | . . . Damage Inflicted 1511 | . 286 1225 Guns 924 | . 240 684 Cannons . | . . . Explosions 561 | . 32 529 Melee . | . . . Ramming 26 | . 14 12 Kinetic 433 | . 55 378 Thermal 208 | . 32 176 Explosive 459 | . . 459 Electromagnetic 385 | . 185 200 Impact . | . . . Slashing . | . . . Piercing . | . . . Highest Corruption 1 | . . 1 Average Corruption 1 | . . 1 Corruption Purged . | . . . Corruption Blocked . | . . . Effects 3 | . . 3 Matter Fused 2 | . . 2 Energy Discharges 1 | . . 1 Overload Shots . | . . . Overflow Damage 7 | . . 7 Projectiles . | . . . Explosions 7 | . . 7 Melee . | . . . Knockbacks . | . . . Impact . | . . . Kinetic . | . . . Secondary . | . . . Self-Inflicted Damage 123 | . 5 118 Shots 4 | . . 4 Rammed 6 | . 5 1 Targets Rammed 7 | . 5 2 Kicked 1 | . . 1 Crushed . | . . . Highest Temperature 54 | . 40 54 Average Temperature 15 | . 16 15 Received Heat Transfer 591 | . 18 573 Siege Activations . | . . . Martial Activations . | . . . Shielding Activations . | . . . Robots Disrupted . | . . . Combat Hostiles . | . . . Robots Corrupted . | . . . Combat Hostiles . | . . . Parts Fried 1 | . 1 . Impact Corruptions . | . . . Robots Melted . | . . . Combat Hostiles . | . . . Parts Melted . | . . . Heat Transferred 583 | . 50 533 Parts Sabotaged . | . . . Parts Stolen . | . . . Parts Stripped . | . . . Power Chain Reactions 3 | . 1 2 Alert | -11 -10 -9 ------- Run | Yrd Mat Mat Maximum Alert Level 1 | . . 1 Low Security (%) 98 | 100 100 96 Level 1 1 | . . 3 Level 2 . | . . . Level 3 . | . . . Level 4 . | . . . Level 5 . | . . . High Security . | . . . Max Security . | . . . Peak Influence 200 | . 30 200 Initial 5 | . . 5 Average 34 | . 7 61 Influence Increases 486 | . 105 381 Destroy 0b10 Robot/C 280 | . 40 240 Destroy 0b10 Robot/NC 40 | . 20 20 Destroy Leader 66 | . 14 52 Successful Hack 27 | . 27 . Disable Machine 45 | . . 45 Destroy Structure 28 | . 4 24 Influence Decreases 405 | . 91 314 Entered New Map 9 | . . 9 Time Decay 266 | . 91 175 Lost Part 130 | . . 130 Squads Dispatched 3 | . . 3 Investigation 2 | . . 2 Extermination . | . . . Reinforcement 1 | . . 1 Assault . | . . . Garrison . | . . . Intercept . | . . . Searches Triggered . | . . . Construction Impeded 1 | . . 1 Haulers Reinforced . | . . . Active Scanning Responses . | . . . Cargo Convoy Interrupts . | . . . Stealth | -11 -10 -9 --------- Run | Yrd Mat Mat Distress Signals 2 | . . 2 Communications Jammed . | . . . Distress Signals . | . . . Times Spotted 26 | . 7 19 Peak Tracking Total 6 | . 3 6 Tactical Retreats 3 | . . 3 Traps | -11 -10 -9 ------- Run | Yrd Mat Mat Traps Triggered 4 | . . 4 Indirectly . | . . . Trap Hack Attempts . | . . . Triggered . | . . . Disarmed . | . . . Reprogrammed . | . . . Reused . | . . . Traps Extracted . | . . . Installed . | . . . Triggered . | . . . Machines | -11 -10 -9 ---------- Run | Yrd Mat Mat Machines Disabled 3 | . . 3 Max in Single Turn 2 | . . 2 Machines Repaired . | . . . Machines Dismantled . | . . . Machines Sabotaged . | . . . Overloaded Fab Kills . | . . . Hacking | -11 -10 -9 --------- Run | Yrd Mat Mat Machines Accessed 6 | . 4 2 Terminals 6 | . 4 2 Fabricators . | . . . Repair Stations . | . . . Recycling Units . | . . . Scanalyzers . | . . . Garrison Access . | . . . Total Hacks 13 | . 7 6 Successful 4 | . 4 . Failed 9 | . 3 6 Catastrophic 2 | . . 2 Database Lockouts . | . . . Manual . | . . . Terminals 13 | . 7 6 Fabricators . | . . . Repair Stations . | . . . Recycling Units . | . . . Scanalyzers . | . . . Garrison Access . | . . . Terminal Hacks 4 | . 4 . Prototype ID Bank 2 | . 2 . Level Access Points 1 | . 1 . Locate Traps 1 | . 1 . Fabricator Hacks . | . . . Repair Station Hacks . | . . . Recycling Unit Hacks . | . . . Scanalyzer . | . . . Garrison Access Hacks . | . . . Unauthorized Hacks . | . . . Terminals . | . . . Fabricators . | . . . Repair Stations . | . . . Recycling Units . | . . . Scanalyzers . | . . . Garrison Access . | . . . Data Cores Recovered . | . . . Used . | . . . Hacking Detections 5 | . 3 2 Full Trace Events 2 | . . 2 Feedback Events . | . . . Feedback Blocked . | . . . Robot Schematics Acquired . | . . . Robots Built . | . . . Authchips . | . . . Time . | . . . Total Robot Build Rating . | . . . Part Schematics Acquired . | . . . Parts Built . | . . . Authchips . | . . . Time . | . . . Total Part Build Rating . | . . . Parts Repaired . | . . . Time . | . . . Parts Recycled . | . . . Recycled Matter . | . . . Retrieved Matter . | . . . Retrieved Components . | . . . Parts Scanalyzed . | . . . Part Schematics Acquired . | . . . Parts Damaged . | . . . Bothacking | -11 -10 -9 ------------ Run | Yrd Mat Mat Used RIF Installer . | . . . Robots Hacked . | . . . Non-combat . | . . . Combat . | . . . Robot Hacks Applied . | . . . Relay Couplers Released . | . . . Fabnet Peak Effective % . | . . . Robots Rewired . | . . . Allies Hacked . | . . . Hacks Repelled . | . . . Allies | -11 -10 -9 -------- Run | Yrd Mat Mat Total Allies . | . . . Largest Group . | . . . Highest-Rated Group . | . . . Highest-Rated Ally . | . . . Total Orders . | . . . Ally Attacks . | . . . Total Damage . | . . . Kills . | . . . Allies Corrupted . | . . . Allies Melted . | . . . Intel | -11 -10 -9 ------- Run | Yrd Mat Mat Active Infowar (turns) 119 | . . 119 ECM 119 | . . 119 Robot Analysis Total . | . . . Derelict Logs Recovered . | . . . Drone Launches . | . . . Drone Recoveries . | . . . Exploration | -11 -10 -9 ------------- Run | Yrd Mat Mat Turns Passed 950 | 54 412 484 Spaces Moved 729 | 53 441 235 Core 5 | 4 . 1 Treads . | . . . Legs 128 | . . 128 Wheels 596 | 49 441 106 Hover . | . . . Flight . | . . . Fastest Speed 50 | 50 80 86 Average Speed 88 | 77 80 106 Slowest Speed 300 | 80 80 300 Overloaded Moves . | . . . Propulsion Burnouts . | . . . Robots Hopped . | . . . Potential Cave-ins . | . . . Cave-ins Triggered . | . . . Exploration Rate (%) 38 | 4 83 27 Regions Visited 2 Branch Regions . Pre-discovered Areas . | . . . Known Exits Taken 1 | . 1 . Unknown Exits Taken 1 | 1 . . Scrap Searched . | . . . Spaces Dug . | . . . Terrain Destroyed 24 | . 4 20 Melee . | . . . Projectile . | . . . AOE 24 | . 4 20 Terrain Rammed . | . . . Walls Destroyed . | . . . Machines Disabled . | . . . Actions | -11 -10 -9 --------- Run | Yrd Mat Mat Total 910 | 63 471 376 Wait 50 | . 3 47 Move 727 | 52 440 235 Hop . | . . . Pick Up 17 | 5 5 7 Fast Attach 16 | 5 1 10 Attach 15 | 1 . 14 Detach 2 | . . 2 Swap 6 | . . 6 Drop 3 | . 1 2 Fire 67 | . 16 51 Melee . | . . . Ram 6 | . 5 1 Kick 1 | . . 1 Crush . | . . . Escape Stasis . | . . . Rewire . | . . . Trap . | . . . Miscellaneous . | . . . Route ------- -11/Scrapyard -10/Materials (discovered 5 exits: *Mat x3 / [*Min] / [*Sub]) -9/Materials History --------- Turn | Location | Event 7 | -11/Scrapyard | Discovered new exit (range 15) 55 | -11/Scrapyard | Entered Materials 56 | -10/Materials | Met a group of wandering Federalists 158 | -10/Materials | Lost 3 allies 165 | -10/Materials | Discovered new exit (range 9) 294 | -10/Materials | Discovered new exit (range 9) 311 | -10/Materials | Build established: Mutant 358 | -10/Materials | Discovered new exit (range 7) 448 | -10/Materials | Discovered new exit (range 11) 452 | -10/Materials | Identified exit to Materials 467 | -10/Materials | Entered another Materials area 467 | -9/Materials | Evolved 2 slots: Propulsion x1, Utility x1 679 | -9/Materials | Lost 5 parts (1p2n1u1w) 833 | -9/Materials | Destroyed 8 combat bots 920 | -9/Materials | Build established: Scavenger-Mutant 925 | -9/Materials | Core integrity fell below 50% 940 | -9/Materials | Core integrity fell below 20% 951 | -9/Materials | Destroyed by Y-45 Defender with Heavy Assault Rifle Last Messages --------------- 00921_ Grenade Launcher destroyed. 00921_ Ion Engine destroyed. 00925_ Aluminum Leg destroyed. 00929_ Lgt. Assault Rifle destroyed. 00931_ Ion Engine destroyed. 00932_ G-34 Mercenary destroyed. 00932_ U-05 Engineer builds a Wall. 00933_ Acquired Imp. Medium Laser. 00935_ K-01 Serf collects debris. 00937_ U-05 Engineer builds a Wall. 00938_ R-06 Scavenger collects Aluminum Leg. 00938_ K-01 Serf collects debris. 00939_ Y-45 Defender suffers critical hit (Burn). 00942_ R-06 Scavenger collects Sml. Laser. 00942_ K-01 Serf collects debris. 00948_ Y-45 Defender heat damages Heat Sink, Heat Sink, Lgt. Treads, Imp. Ion Engine. 00949_ K-01 Serf collects debris. 00950_ Med. Armor Plating destroyed. Map ----- +----------------------------------------------------+ | ?????????????????????????????????????????????????? | | ?????????????????????????????????????????????????? | | ?????????????????????????????????????????????????? | | ?????????????????????????????????????????????????? | | ?????????????????????????????????????????????????? | | ?????????????????????????????????????????????????? | | ?????????????????????????????????????????????????? | | ?????????????????????????????????????????????????? | | ?????????????????????????????????????????????????? | | ????????????????????? ??????????????????????????? | | ????????????????????? ??????????????????????????? | | ????????????????????? ??????????????????????????? | | ????????????????????? ??????????????????????????? | | ????????????????????? ??????????????????????????? | | #???????????????????? #?????????????????????????? | | #???????????????????? ?????????????????????????? | | ##########??????????? ?????????????????????????? | | # !#??????????? ?????????????????????????? | | # "S #???????????# #?????????????????????????? | | # """ #???????????# #?????????????????????????? | | # "" #???????????# #?????????????????????????? | | # #???????????# #?????????????????????????? | | # """ ############# #?????????????????????????? | | # """ + u[##????????????????????????? | | + """ ######### ##Ym###??????????????????????? | | # #??????# %%Y @#??????????????????????? | | ##########??????#!!!k g #??????????????????????? | | #=""" #??????#! ! T" ##?????????????????????? | | #% " *#??????#!!! #?????????????????????? | | # = #??????############?????????????????????? | | #%% !! #???????????????????????????????????????? | | | #???????????????????????????????????????? | | # "" #???????????????????????????????????????? | | # "" #???????????????????????????????????????? | | """ #???????????????????????????????????????? | | # [ #???????????????????????????????????????? | | ##########???????????????????????????????????????? | | #????????????????????????????????????????????????? | | #????????????????????????????????????????????????? | | #????????????????????????????????????????????????? | | #????????????????????????????????????????????????? | | #????????????????????????????????????????????????? | | #?######?????????????????????????????????????????? | | # """ #?????????????????????????????????????????? | | # """ #?????????????????????????????????????????? | | + """ #?????????????????????????????????????????? | | # #?????????????????????????????????????????? | | # #?????????????????????????????????????????? | | #? #?????????????????????????????????????????? | | #?######?##??????????????????????????????????????? | +----------------------------------------------------+ Best States ------------- Heat Dissipation 42 Energy Generation 10 Energy Capacity 250 Matter Stores 300 Matter Capacity 300 Sight Range 16 Terrain Scan Density 10 ECM Strength 1 Armor Coverage 225 Propulsion Shielding 33 Evasion (%) 55 Item Schematics ----------------- None Robot Schematics ------------------ None Fabricated ------------ Nothing Repaired ---------- Nothing Alien Tech Used ----------------- None Achievements -------------- None Challenges ------------ None Game ------ Seed SpreadMultireflexStorage Manual? 0 Play Time 00:11:42 Cumulative 8.7 hours Start 2025.09.17 @ 22:28:14 End 2025.09.17 @ 22:38:55 Sessions 1 Manual Loads 0 Difficulty Rogue Special Mode None Game No. 16 Rogue 16 Adventurer 0 Explorer 0 Win Type - Total 0 Types 0/0/0/0/0/0/0/0/0/0 Lore% 6 Gallery% 12 Achievement% 13 Wizard Run 0 Options --------- Layout 1 ASCII 0 Keyboard 1 Movement Numpad Keybinds 0 Fullscreen 0 Font 20/X11 Map View 50x35 Zoom Use 0% Tactical HUD 1 Map Filters NONE Filters NONE Steam 1 RUN: abc969ed-b899-4963-b32d-85abf69ff67d